[Event "Late-Titled-Tuesday-Blitz-February-06-2024"]
[Site "Chess.com"]
[Date "2024.02.06"]
[Round "3"]
[White "Levanzovsky"]
[Black "LionTheLeon_06"]
[Result "1-0"]
[WhiteElo "2530"]
[BlackElo "2872"]
[TimeControl "180+1"]
[EndTime "14:31:26 PST"]
[Termination "Levanzovsky won by checkmate"]

1. e4 {[%clk 0:03:00.9]} 1... c6 {[%clk 0:03:00.4]} 2. Nc3 {[%clk 0:02:56.7]}
2... d5 {[%clk 0:03:00.9]} 3. Nf3 {[%clk 0:02:57.2]} 3... g6 {[%clk 0:02:58.8]}
4. d4 {[%clk 0:02:54.6]} 4... Bg7 {[%clk 0:02:58.2]} 5. h3 {[%clk 0:02:54.1]}
5... Nf6 {[%clk 0:02:51.6]} 6. Bd3 {[%clk 0:02:40.9]} 6... dxe4 {[%clk
0:02:51.4]} 7. Nxe4 {[%clk 0:02:41.8]} 7... Nxe4 {[%clk 0:02:50.6]} 8. Bxe4
{[%clk 0:02:41.5]} 8... Be6 {[%clk 0:02:50.5]} 9. c3 {[%clk 0:02:34.1]} 9... Bd5
{[%clk 0:02:50.5]} 10. Bc2 {[%clk 0:02:33.4]} 10... O-O {[%clk 0:02:48.8]} 11.
O-O {[%clk 0:02:32.7]} 11... Nd7 {[%clk 0:02:45.7]} 12. Re1 {[%clk 0:02:32.2]}
12... e6 {[%clk 0:02:36.1]} 13. Nh2 {[%clk 0:01:57.2]} 13... c5 {[%clk
0:02:29.9]} 14. dxc5 {[%clk 0:01:48.8]} 14... Nxc5 {[%clk 0:02:30.8]} 15. Ng4
{[%clk 0:01:49]} 15... h5 {[%clk 0:02:28.1]} 16. Ne5 {[%clk 0:01:42.5]} 16... b5
{[%clk 0:02:04.9]} 17. Be3 {[%clk 0:01:30.7]} 17... Rc8 {[%clk 0:02:03.9]} 18.
Bd4 {[%clk 0:01:29.5]} 18... Qc7 {[%clk 0:02:03]} 19. Qd2 {[%clk 0:01:15.2]}
19... Rfd8 {[%clk 0:01:59.6]} 20. Qg5 {[%clk 0:01:13.3]} 20... Bb7 {[%clk
0:01:24]} 21. Nxg6 {[%clk 0:00:55.8]} 21... fxg6 {[%clk 0:01:22.4]} 22. Qxg6
{[%clk 0:00:56.7]} 22... Qf7 {[%clk 0:01:13.4]} 23. Qh7+ {[%clk 0:00:49.1]}
23... Kf8 {[%clk 0:01:13.8]} 24. Bg6 {[%clk 0:00:49]} 24... Qg8 {[%clk
0:00:57.3]} 25. Qxh5 {[%clk 0:00:39.3]} 25... Bxd4 {[%clk 0:00:51.9]} 26. cxd4
{[%clk 0:00:40.2]} 26... Rxd4 {[%clk 0:00:50.9]} 27. Rac1 {[%clk 0:00:33.8]}
27... Rd5 {[%clk 0:00:51]} 28. Qf3+ {[%clk 0:00:23]} 28... Ke7 {[%clk 0:00:51]}
29. Qg3 {[%clk 0:00:17]} 29... Nd7 {[%clk 0:00:38.2]} 30. Qh4+ {[%clk
0:00:09.8]} 30... Nf6 {[%clk 0:00:28.9]} 31. Qb4+ {[%clk 0:00:09.8]} 31... Kd7
{[%clk 0:00:28.3]} 32. Rxc8 {[%clk 0:00:09]} 32... Kxc8 {[%clk 0:00:27.8]} 33.
Rc1+ {[%clk 0:00:07.1]} 33... Kb8 {[%clk 0:00:27.9]} 34. Qf4+ {[%clk 0:00:07.2]}
34... Ka8 {[%clk 0:00:19.8]} 35. Qxf6 {[%clk 0:00:07.4]} 35... Rd7 {[%clk
0:00:19.2]} 36. h4 {[%clk 0:00:03.2]} 36... e5 {[%clk 0:00:14.8]} 37. h5 {[%clk
0:00:03]} 37... a6 {[%clk 0:00:14.9]} 38. f3 {[%clk 0:00:02.9]} 38... Qxa2
{[%clk 0:00:14.6]} 39. Re1 {[%clk 0:00:02.5]} 39... Qxb2 {[%clk 0:00:14.9]} 40.
Qxe5 {[%clk 0:00:02.9]} 40... Qd2 {[%clk 0:00:12.5]} 41. Qe8+ {[%clk 0:00:02.9]}
41... Rd8 {[%clk 0:00:11.3]} 42. Qe3 {[%clk 0:00:03.1]} 42... Qd6 {[%clk
0:00:10.7]} 43. Qf2 {[%clk 0:00:02.1]} 43... b4 {[%clk 0:00:10.6]} 44. Qe2
{[%clk 0:00:01.6]} 44... b3 {[%clk 0:00:11]} 45. Qb2 {[%clk 0:00:01.8]} 45...
Qb6+ {[%clk 0:00:11]} 46. Kh1 {[%clk 0:00:02]} 46... a5 {[%clk 0:00:10.9]} 47.
Rb1 {[%clk 0:00:02.7]} 47... a4 {[%clk 0:00:10.5]} 48. Qa3 {[%clk 0:00:03.4]}
48... Bc6 {[%clk 0:00:10.6]} 49. Qe7 {[%clk 0:00:03.4]} 49... Rd2 {[%clk
0:00:08.5]} 50. Qf8+ {[%clk 0:00:03]} 50... Ka7 {[%clk 0:00:08.8]} 51. Qg7+
{[%clk 0:00:03.3]} 51... Ka6 {[%clk 0:00:07.4]} 52. Qc3 {[%clk 0:00:04]} 52...
Rd6 {[%clk 0:00:03.2]} 53. Bd3+ {[%clk 0:00:04.2]} 53... Ka7 {[%clk 0:00:03.1]}
54. Qg7+ {[%clk 0:00:03.8]} 54... Bb7 {[%clk 0:00:03.6]} 55. Qc3 {[%clk
0:00:03.9]} 55... Rd5 {[%clk 0:00:02.3]} 56. Bg6 {[%clk 0:00:04.3]} 56... Rc5
{[%clk 0:00:02.6]} 57. Qd4 {[%clk 0:00:04.3]} 57... Rb5 {[%clk 0:00:02.3]} 58.
Qxb6+ {[%clk 0:00:04]} 58... Kxb6 {[%clk 0:00:03.2]} 59. h6 {[%clk 0:00:04.5]}
59... a3 {[%clk 0:00:03.1]} 60. h7 {[%clk 0:00:05]} 60... a2 {[%clk 0:00:02.8]}
61. h8=Q {[%clk 0:00:05.6]} 61... axb1=Q+ {[%clk 0:00:03.1]} 62. Bxb1 {[%clk
0:00:06.3]} 62... b2 {[%clk 0:00:04]} 63. Qd4+ {[%clk 0:00:06.2]} 63... Ka6
{[%clk 0:00:04.1]} 64. Qa4+ {[%clk 0:00:06.4]} 64... Kb6 {[%clk 0:00:04.3]} 65.
Qd4+ {[%clk 0:00:07]} 65... Ka5 {[%clk 0:00:04.7]} 66. Qd2+ {[%clk 0:00:06.5]}
66... Kb6 {[%clk 0:00:05.1]} 67. Kh2 {[%clk 0:00:06.4]} 67... Bd5 {[%clk
0:00:04.4]} 68. Qd4+ {[%clk 0:00:06.5]} 68... Kc7 {[%clk 0:00:04.1]} 69. Qc3+
{[%clk 0:00:06.7]} 69... Kd6 {[%clk 0:00:04]} 70. Kg3 {[%clk 0:00:06.4]} 70...
Be6 {[%clk 0:00:03.9]} 71. Kf4 {[%clk 0:00:05.7]} 71... Bd7 {[%clk 0:00:03.3]}
72. g4 {[%clk 0:00:05.7]} 72... Bc6 {[%clk 0:00:03]} 73. Qf6+ {[%clk 0:00:06]}
73... Kc7 {[%clk 0:00:03]} 74. Qe7+ {[%clk 0:00:06.1]} 74... Kb6 {[%clk
0:00:03.1]} 75. g5 {[%clk 0:00:06.3]} 75... Rb3 {[%clk 0:00:03.2]} 76. g6 {[%clk
0:00:04.5]} 76... Rxf3+ {[%clk 0:00:03.4]} 77. Kg4 {[%clk 0:00:05.2]} 77... Rf1
{[%clk 0:00:02.5]} 78. Qe3+ {[%clk 0:00:05.4]} 78... Kc7 {[%clk 0:00:02.1]} 79.
Qa7+ {[%clk 0:00:05.4]} 79... Bb7 {[%clk 0:00:01.6]} 80. Qa5+ {[%clk 0:00:05.5]}
80... Kb8 {[%clk 0:00:01.7]} 81. Qe5+ {[%clk 0:00:05.5]} 81... Ka8 {[%clk
0:00:01.7]} 82. Qxb2 {[%clk 0:00:06.1]} 82... Rg1+ {[%clk 0:00:01.7]} 83. Kf5
{[%clk 0:00:05]} 83... Rf1+ {[%clk 0:00:02.3]} 84. Ke5 {[%clk 0:00:04.2]} 84...
Re1+ {[%clk 0:00:02.8]} 85. Kd6 {[%clk 0:00:04.3]} 85... Rd1+ {[%clk 0:00:02.9]}
86. Kc7 {[%clk 0:00:04.6]} 86... Ba6 {[%clk 0:00:01.9]} 87. Qb8# {[%clk
0:00:04.4]} 1-0

[Event "Late-Titled-Tuesday-Blitz-February-06-2024"]
[Site "Chess.com"]
[Date "2024.02.06"]
[Round "3"]
[White "akinov-akinseye"]
[Black "carloseduar100"]
[Result "0-1"]
[WhiteElo "1906"]
[BlackElo "2333"]
[TimeControl "180+1"]
[EndTime "14:31:26 PST"]
[Termination "carloseduar100 won by checkmate"]

1. e4 {[%clk 0:02:54.5]} 1... e6 {[%clk 0:02:59.8]} 2. d3 {[%clk 0:02:52.1]}
2... d5 {[%clk 0:03:00.7]} 3. Nd2 {[%clk 0:02:52]} 3... Nf6 {[%clk 0:03:01.3]}
4. Ngf3 {[%clk 0:02:49.1]} 4... c5 {[%clk 0:03:01.1]} 5. g3 {[%clk 0:02:49.4]}
5... Nc6 {[%clk 0:03:01.7]} 6. Bg2 {[%clk 0:02:49.8]} 6... b5 {[%clk 0:03:02]}
7. O-O {[%clk 0:02:48.5]} 7... Be7 {[%clk 0:03:01.9]} 8. c3 {[%clk 0:02:47]}
8... Bb7 {[%clk 0:03:02]} 9. Qc2 {[%clk 0:02:47.1]} 9... a5 {[%clk 0:03:02]} 10.
Re1 {[%clk 0:02:45.8]} 10... a4 {[%clk 0:03:02]} 11. Nf1 {[%clk 0:02:44.4]}
11... Qb6 {[%clk 0:03:01.9]} 12. a3 {[%clk 0:02:42.7]} 12... b4 {[%clk
0:03:00.9]} 13. axb4 {[%clk 0:02:41.4]} 13... cxb4 {[%clk 0:03:01]} 14. Rxa4
{[%clk 0:02:39.8]} 14... Rxa4 {[%clk 0:03:00.8]} 15. Qxa4 {[%clk 0:02:39.6]}
15... bxc3 {[%clk 0:03:01.3]} 16. bxc3 {[%clk 0:02:36.9]} 16... dxe4 {[%clk
0:02:59.6]} 17. dxe4 {[%clk 0:02:34.5]} 17... O-O {[%clk 0:02:59.4]} 18. Be3
{[%clk 0:02:33.5]} 18... Qb2 {[%clk 0:02:49.3]} 19. c4 {[%clk 0:02:13.2]} 19...
Ra8 {[%clk 0:02:24.1]} 20. Qd1 {[%clk 0:02:08.7]} 20... Nxe4 {[%clk 0:02:11.3]}
21. Nd4 {[%clk 0:01:30.5]} 21... Nc3 {[%clk 0:01:30.5]} 22. Qb3 {[%clk
0:01:25.3]} 22... Qxb3 {[%clk 0:01:24.1]} 23. Nxb3 {[%clk 0:01:24.8]} 23... Na5
{[%clk 0:00:55.9]} 24. Bxb7 {[%clk 0:01:10]} 24... Nxb7 {[%clk 0:00:52.8]} 25.
Nfd2 {[%clk 0:01:06.6]} 25... h6 {[%clk 0:00:48.4]} 26. Kg2 {[%clk 0:01:04.9]}
26... Ra2 {[%clk 0:00:44.1]} 27. Bd4 {[%clk 0:01:01.5]} 27... Na4 {[%clk
0:00:38.3]} 28. Rc1 {[%clk 0:00:56]} 28... Nac5 {[%clk 0:00:38.1]} 29. Bxc5
{[%clk 0:00:53.3]} 29... Nxc5 {[%clk 0:00:37.9]} 30. Nxc5 {[%clk 0:00:53.3]}
30... Rxd2 {[%clk 0:00:33.8]} 31. Ne4 {[%clk 0:00:50.9]} 31... Re2 {[%clk
0:00:33.7]} 32. Kf3 {[%clk 0:00:49.2]} 32... Rb2 {[%clk 0:00:28.4]} 33. c5
{[%clk 0:00:48.9]} 33... f5 {[%clk 0:00:28.3]} 34. Nd6 {[%clk 0:00:28.7]} 34...
Bxd6 {[%clk 0:00:28.5]} 35. cxd6 {[%clk 0:00:27.1]} 35... Rd2 {[%clk 0:00:29.1]}
36. Rc6 {[%clk 0:00:25.6]} 36... Kf7 {[%clk 0:00:29.4]} 37. h3 {[%clk
0:00:25.2]} 37... Kf6 {[%clk 0:00:29.2]} 38. g4 {[%clk 0:00:22.9]} 38... g5
{[%clk 0:00:27.7]} 39. gxf5 {[%clk 0:00:21.8]} 39... Kxf5 {[%clk 0:00:27.8]} 40.
Ke3 {[%clk 0:00:21.1]} 40... Rd5 {[%clk 0:00:27.3]} 41. f3 {[%clk 0:00:18.1]}
41... Ke5 {[%clk 0:00:27.2]} 42. d7 {[%clk 0:00:16.2]} 42... Rxd7 {[%clk
0:00:26.8]} 43. Rc8 {[%clk 0:00:16.4]} 43... Kf6 {[%clk 0:00:25.4]} 44. Rh8
{[%clk 0:00:16.8]} 44... Kg7 {[%clk 0:00:25.7]} 45. Re8 {[%clk 0:00:16.5]} 45...
Rd6 {[%clk 0:00:26.2]} 46. Ke4 {[%clk 0:00:16.5]} 46... Kg6 {[%clk 0:00:25.6]}
47. f4 {[%clk 0:00:16.4]} 47... gxf4 {[%clk 0:00:23.8]} 48. Kxf4 {[%clk
0:00:17.3]} 48... Ra6 {[%clk 0:00:20.4]} 49. h4 {[%clk 0:00:17.8]} 49... Kh5
{[%clk 0:00:20.3]} 50. Kg3 {[%clk 0:00:18.1]} 50... Ra3+ {[%clk 0:00:20.3]} 51.
Kf4 {[%clk 0:00:17.2]} 51... Ra4+ {[%clk 0:00:20.6]} 52. Kg3 {[%clk 0:00:16.3]}
52... Re4 {[%clk 0:00:20.5]} 53. Rg8 {[%clk 0:00:14.9]} 53... e5 {[%clk
0:00:19]} 54. Re8 {[%clk 0:00:12.7]} 54... Re3+ {[%clk 0:00:18.6]} 55. Kg2
{[%clk 0:00:12.1]} 55... Kxh4 {[%clk 0:00:18.4]} 56. Kf2 {[%clk 0:00:12.2]}
56... Re4 {[%clk 0:00:18.2]} 57. Kf3 {[%clk 0:00:12.5]} 57... Rf4+ {[%clk
0:00:18.7]} 58. Ke3 {[%clk 0:00:11.7]} 58... Rf5 {[%clk 0:00:19.1]} 59. Rh8
{[%clk 0:00:11.2]} 59... h5 {[%clk 0:00:19.1]} 60. Ke4 {[%clk 0:00:11.2]} 60...
Rg5 {[%clk 0:00:19.4]} 61. Rf8 {[%clk 0:00:10.9]} 61... Kg4 {[%clk 0:00:19.8]}
62. Ra8 {[%clk 0:00:10.2]} 62... h4 {[%clk 0:00:20.3]} 63. Ra3 {[%clk
0:00:10.4]} 63... h3 {[%clk 0:00:20.8]} 64. Rc3 {[%clk 0:00:09.3]} 64... h2
{[%clk 0:00:20.9]} 65. Rc1 {[%clk 0:00:08.6]} 65... Kh3 {[%clk 0:00:21.4]} 66.
Rh1 {[%clk 0:00:08.5]} 66... Rg1 {[%clk 0:00:21.7]} 67. Rxh2+ {[%clk 0:00:08.7]}
67... Kxh2 {[%clk 0:00:22]} 68. Kxe5 {[%clk 0:00:09.4]} 68... Rf1 {[%clk
0:00:22.6]} 69. Ke4 {[%clk 0:00:08.6]} 69... Kg3 {[%clk 0:00:23.5]} 70. Kd3
{[%clk 0:00:09]} 70... Re1 {[%clk 0:00:24]} 71. Kd2 {[%clk 0:00:08.8]} 71... Re8
{[%clk 0:00:24.9]} 72. Kd3 {[%clk 0:00:08.8]} 72... Kf4 {[%clk 0:00:25.8]} 73.
Kc2 {[%clk 0:00:06.5]} 73... Rd8 {[%clk 0:00:25.9]} 74. Kc3 {[%clk 0:00:05.7]}
74... Ke4 {[%clk 0:00:26.3]} 75. Kc2 {[%clk 0:00:04.9]} 75... Ke3 {[%clk
0:00:26.7]} 76. Kc1 {[%clk 0:00:04.8]} 76... Rd2 {[%clk 0:00:26.3]} 77. Kb1
{[%clk 0:00:02.7]} 77... Kd3 {[%clk 0:00:26.7]} 78. Kc1 {[%clk 0:00:01.8]} 78...
Kc3 {[%clk 0:00:27.6]} 79. Kb1 {[%clk 0:00:01.9]} 79... Rc2 {[%clk 0:00:28.1]}
80. Ka1 {[%clk 0:00:02.8]} 80... Kb3 {[%clk 0:00:27.7]} 81. Kb1 {[%clk
0:00:02.6]} 81... Rc5 {[%clk 0:00:28.6]} 82. Ka1 {[%clk 0:00:02.4]} 82... Rc1#
{[%clk 0:00:29.5]} 0-1

[Event "Late-Titled-Tuesday-Blitz-February-06-2024"]
[Site "Chess.com"]
[Date "2024.02.06"]
[Round "3"]
[White "ProfessorChess101"]
[Black "VitorBronson"]
[Result "1-0"]
[WhiteElo "2808"]
[BlackElo "2508"]
[TimeControl "180+1"]
[EndTime "14:31:31 PST"]
[Termination "ProfessorChess101 won on time"]

1. d4 {[%clk 0:03:00.9]} 1... d5 {[%clk 0:02:59.3]} 2. c4 {[%clk 0:03:00.9]}
2... c6 {[%clk 0:02:59.9]} 3. cxd5 {[%clk 0:03:00.9]} 3... cxd5 {[%clk
0:02:59.7]} 4. Nc3 {[%clk 0:03:01.6]} 4... Nf6 {[%clk 0:03:00]} 5. Bf4 {[%clk
0:03:01.8]} 5... Nc6 {[%clk 0:02:59.5]} 6. e3 {[%clk 0:03:02]} 6... a6 {[%clk
0:03:00]} 7. Be2 {[%clk 0:03:01.3]} 7... Bf5 {[%clk 0:02:59.1]} 8. Nf3 {[%clk
0:03:01]} 8... e6 {[%clk 0:02:59]} 9. O-O {[%clk 0:03:00.4]} 9... Bd6 {[%clk
0:02:58.6]} 10. Ne5 {[%clk 0:02:59.3]} 10... O-O {[%clk 0:02:56.9]} 11. Nxc6
{[%clk 0:02:52.5]} 11... bxc6 {[%clk 0:02:56.6]} 12. Bxd6 {[%clk 0:02:51.9]}
12... Qxd6 {[%clk 0:02:57.5]} 13. Rc1 {[%clk 0:02:51.6]} 13... c5 {[%clk
0:02:50.9]} 14. Na4 {[%clk 0:02:35.7]} 14... c4 {[%clk 0:02:49.1]} 15. b3 {[%clk
0:02:32.6]} 15... cxb3 {[%clk 0:02:47.1]} 16. axb3 {[%clk 0:02:33.5]} 16... Rfc8
{[%clk 0:02:43.6]} 17. Nc5 {[%clk 0:02:30]} 17... Ne4 {[%clk 0:02:43.8]} 18. b4
{[%clk 0:02:19.5]} 18... a5 {[%clk 0:02:44.2]} 19. Nxe4 {[%clk 0:02:06.1]} 19...
Bxe4 {[%clk 0:02:42.6]} 20. Rxc8+ {[%clk 0:02:06.3]} 20... Rxc8 {[%clk
0:02:42.4]} 21. bxa5 {[%clk 0:02:06.9]} 21... Qa3 {[%clk 0:02:41.2]} 22. a6
{[%clk 0:02:05.3]} 22... h6 {[%clk 0:02:35.7]} 23. h3 {[%clk 0:01:58.2]} 23...
Rc2 {[%clk 0:02:35.7]} 24. Bb5 {[%clk 0:01:39.9]} 24... Qa5 {[%clk 0:02:16.3]}
25. Bd3 {[%clk 0:01:18.8]} 25... Rd2 {[%clk 0:02:08.2]} 26. Qa1 {[%clk
0:01:09.4]} 26... Ra2 {[%clk 0:02:06.1]} 27. Qb1 {[%clk 0:01:04.2]} 27... Bxd3
{[%clk 0:02:03.4]} 28. Qxd3 {[%clk 0:01:05.1]} 28... Qxa6 {[%clk 0:02:03.8]} 29.
Qc3 {[%clk 0:01:00.7]} 29... g6 {[%clk 0:02:02.3]} 30. Re1 {[%clk 0:00:56.2]}
30... Ra3 {[%clk 0:02:00.6]} 31. Qb2 {[%clk 0:00:51.1]} 31... Ra2 {[%clk
0:02:00.6]} 32. Qb8+ {[%clk 0:00:51.5]} 32... Kg7 {[%clk 0:01:58.9]} 33. Qe5+
{[%clk 0:00:52.1]} 33... Kh7 {[%clk 0:01:57.9]} 34. Qf6 {[%clk 0:00:47.1]} 34...
Kg8 {[%clk 0:01:57.4]} 35. Qf4 {[%clk 0:00:37.1]} 35... h5 {[%clk 0:01:54]} 36.
Kh2 {[%clk 0:00:33.1]} 36... Ra1 {[%clk 0:01:54.1]} 37. Rxa1 {[%clk 0:00:31]}
37... Qxa1 {[%clk 0:01:55]} 38. Kg3 {[%clk 0:00:31.2]} 38... Qf1 {[%clk
0:01:47.1]} 39. Qe5 {[%clk 0:00:30.9]} 39... Qg1 {[%clk 0:01:35.2]} 40. Qf6
{[%clk 0:00:29.5]} 40... Qf1 {[%clk 0:01:29.8]} 41. Qf3 {[%clk 0:00:29.7]} 41...
Qb1 {[%clk 0:01:24.6]} 42. Kh4 {[%clk 0:00:26.7]} 42... Kg7 {[%clk 0:01:18.4]}
43. Qf4 {[%clk 0:00:22]} 43... f6 {[%clk 0:01:13.3]} 44. Kg3 {[%clk 0:00:16.7]}
44... Qg1 {[%clk 0:00:56.5]} 45. h4 {[%clk 0:00:15.4]} 45... Qc1 {[%clk
0:00:51.9]} 46. Qd6 {[%clk 0:00:15.5]} 46... Qc8 {[%clk 0:00:47.3]} 47. Qe7+
{[%clk 0:00:15.7]} 47... Kh6 {[%clk 0:00:39]} 48. Qxf6 {[%clk 0:00:16]} 48...
Qe8 {[%clk 0:00:36.5]} 49. Kf4 {[%clk 0:00:13.3]} 49... Qb8+ {[%clk 0:00:31.9]}
50. Qe5 {[%clk 0:00:13.3]} 50... Qf8+ {[%clk 0:00:32]} 51. Kg3 {[%clk
0:00:13.9]} 51... Qe8 {[%clk 0:00:28.6]} 52. f3 {[%clk 0:00:13.6]} 52... Kh7
{[%clk 0:00:27.7]} 53. Qf6 {[%clk 0:00:13.3]} 53... Qb8+ {[%clk 0:00:26.6]} 54.
Kh3 {[%clk 0:00:13.6]} 54... Qc8 {[%clk 0:00:25.9]} 55. Qf7+ {[%clk 0:00:13.2]}
55... Kh6 {[%clk 0:00:25.9]} 56. Qf4+ {[%clk 0:00:13.8]} 56... Kg7 {[%clk
0:00:26]} 57. Qe5+ {[%clk 0:00:14.4]} 57... Kf7 {[%clk 0:00:26.2]} 58. g4 {[%clk
0:00:14.1]} 58... hxg4+ {[%clk 0:00:26.1]} 59. fxg4 {[%clk 0:00:14.5]} 59... Qc1
{[%clk 0:00:25.7]} 60. Qf4+ {[%clk 0:00:14.9]} 60... Kg7 {[%clk 0:00:25.6]} 61.
Kg2 {[%clk 0:00:15.3]} 61... Qc2+ {[%clk 0:00:24.8]} 62. Qf2 {[%clk 0:00:15.8]}
62... Qe4+ {[%clk 0:00:24.5]} 63. Kg3 {[%clk 0:00:16.4]} 63... e5 {[%clk
0:00:22.3]} 64. dxe5 {[%clk 0:00:14.9]} 64... Qxe5+ {[%clk 0:00:22.3]} 65. Qf4
{[%clk 0:00:15.5]} 65... Qe6 {[%clk 0:00:19.4]} 66. Qd4+ {[%clk 0:00:15.7]}
66... Kh7 {[%clk 0:00:19.3]} 67. Kf3 {[%clk 0:00:14.3]} 67... Qf7+ {[%clk
0:00:18.3]} 68. Ke2 {[%clk 0:00:14.8]} 68... Qb7 {[%clk 0:00:18.4]} 69. Kf3
{[%clk 0:00:12.2]} 69... Qf7+ {[%clk 0:00:17.2]} 70. Kg2 {[%clk 0:00:12.9]}
70... Qb7 {[%clk 0:00:16.8]} 71. Qc3 {[%clk 0:00:13.4]} 71... Qb1 {[%clk
0:00:13.3]} 72. Qc7+ {[%clk 0:00:11.7]} 72... Kh8 {[%clk 0:00:12.7]} 73. Qd8+
{[%clk 0:00:11.4]} 73... Kh7 {[%clk 0:00:13.3]} 74. Qxd5 {[%clk 0:00:11.4]}
74... Qc2+ {[%clk 0:00:12.5]} 75. Kg3 {[%clk 0:00:11.8]} 75... Qe2 {[%clk
0:00:12.2]} 76. Qb7+ {[%clk 0:00:10.4]} 76... Kh8 {[%clk 0:00:12.7]} 77. Qf3
{[%clk 0:00:10.8]} 77... Qe1+ {[%clk 0:00:12.6]} 78. Kf4 {[%clk 0:00:11]} 78...
Qxh4 {[%clk 0:00:11.7]} 79. Ke4 {[%clk 0:00:10]} 79... Qe7+ {[%clk 0:00:11]} 80.
Kd3 {[%clk 0:00:10.4]} 80... Qd6+ {[%clk 0:00:11.1]} 81. Ke2 {[%clk 0:00:10.9]}
81... Qa6+ {[%clk 0:00:10.8]} 82. Kf2 {[%clk 0:00:11]} 82... Qa2+ {[%clk
0:00:10.6]} 83. Kg3 {[%clk 0:00:11.5]} 83... Qe6 {[%clk 0:00:09.5]} 84. Qf8+
{[%clk 0:00:10.9]} 84... Kh7 {[%clk 0:00:09.3]} 85. Qf4 {[%clk 0:00:11.5]} 85...
Qc6 {[%clk 0:00:07.9]} 86. Qf7+ {[%clk 0:00:10.7]} 86... Kh8 {[%clk 0:00:05.6]}
87. g5 {[%clk 0:00:11]} 87... Qd6+ {[%clk 0:00:05.2]} 88. Qf4 {[%clk 0:00:11.6]}
88... Qe6 {[%clk 0:00:04.1]} 89. Qf6+ {[%clk 0:00:09.9]} 89... Qxf6 {[%clk
0:00:02.7]} 90. gxf6 {[%clk 0:00:10.8]} 90... Kg8 {[%clk 0:00:03.4]} 91. Kg4
{[%clk 0:00:11.4]} 91... Kf7 {[%clk 0:00:04.3]} 92. Kg5 {[%clk 0:00:12.1]} 1-0

[Event "Late-Titled-Tuesday-Blitz-February-06-2024"]
[Site "Chess.com"]
[Date "2024.02.06"]
[Round "4"]
[White "Payyappat"]
[Black "Lion_DL"]
[Result "1-0"]
[WhiteElo "2513"]
[BlackElo "2318"]
[TimeControl "180+1"]
[EndTime "14:33:58 PST"]
[Termination "Payyappat won by resignation"]

1. e4 {[%clk 0:03:00.9]} 1... c5 {[%clk 0:02:57.6]} 2. Nf3 {[%clk 0:03:00.6]}
2... e6 {[%clk 0:02:57]} 3. d4 {[%clk 0:03:01.1]} 3... cxd4 {[%clk 0:02:57.9]}
4. Nxd4 {[%clk 0:03:01.9]} 4... a6 {[%clk 0:02:58.3]} 5. Nc3 {[%clk 0:03:01.6]}
5... Qc7 {[%clk 0:02:58.8]} 6. Be2 {[%clk 0:02:55.2]} 6... Nf6 {[%clk
0:02:56.7]} 7. O-O {[%clk 0:02:54.9]} 7... d6 {[%clk 0:02:48.7]} 8. Be3 {[%clk
0:02:50.8]} 8... Nbd7 {[%clk 0:02:48]} 9. f4 {[%clk 0:02:50.2]} 9... Be7 {[%clk
0:02:45.4]} 10. Bf3 {[%clk 0:02:48.2]} 10... O-O {[%clk 0:02:44.5]} 11. g4
{[%clk 0:02:47.3]} 11... Nc5 {[%clk 0:02:43.6]} 12. Qe2 {[%clk 0:02:42.7]} 12...
Rb8 {[%clk 0:02:35.9]} 13. Qg2 {[%clk 0:02:42.1]} 13... b5 {[%clk 0:02:34.8]}
14. g5 {[%clk 0:02:40.5]} 14... Nfd7 {[%clk 0:02:34.8]} 15. f5 {[%clk
0:02:40.4]} 15... exf5 {[%clk 0:02:24.8]} 16. exf5 {[%clk 0:02:35.3]} 16... f6
{[%clk 0:02:08.4]} 17. Nd5 {[%clk 0:02:34.3]} 17... Ne5 {[%clk 0:02:05]} 18.
Nxc7 {[%clk 0:02:32.9]} 1-0

[Event "Late-Titled-Tuesday-Blitz-February-06-2024"]
[Site "Chess.com"]
[Date "2024.02.06"]
[Round "4"]
[White "besarquis"]
[Black "Walter_White_Poland"]
[Result "0-1"]
[WhiteElo "2224"]
[BlackElo "2397"]
[TimeControl "180+1"]
[EndTime "14:34:47 PST"]
[Termination "Walter_White_Poland won by resignation"]

1. e4 {[%clk 0:02:56.8]} 1... e6 {[%clk 0:03:00]} 2. d4 {[%clk 0:02:53.6]} 2...
d5 {[%clk 0:02:59.9]} 3. exd5 {[%clk 0:02:53.6]} 3... exd5 {[%clk 0:02:59.6]} 4.
Nf3 {[%clk 0:02:53.8]} 4... Bd6 {[%clk 0:02:59]} 5. Bd3 {[%clk 0:02:53.9]} 5...
Ne7 {[%clk 0:02:58.4]} 6. O-O {[%clk 0:02:53.4]} 6... O-O {[%clk 0:02:58.3]} 7.
c4 {[%clk 0:02:51.5]} 7... c6 {[%clk 0:02:57.3]} 8. h3 {[%clk 0:02:51.1]} 8...
Bf5 {[%clk 0:02:55.8]} 9. Nc3 {[%clk 0:02:48.6]} 9... Bxd3 {[%clk 0:02:54]} 10.
Qxd3 {[%clk 0:02:48.7]} 10... dxc4 {[%clk 0:02:54.3]} 11. Qxc4 {[%clk
0:02:48.5]} 11... Nd7 {[%clk 0:02:54.7]} 12. Bg5 {[%clk 0:02:34.8]} 12... Nb6
{[%clk 0:02:53.6]} 13. Qd3 {[%clk 0:02:34.9]} 13... Qd7 {[%clk 0:02:51.6]} 14.
Rad1 {[%clk 0:02:31.2]} 14... Ned5 {[%clk 0:02:48.7]} 15. Ne4 {[%clk 0:02:28]}
15... Rfe8 {[%clk 0:02:30.7]} 16. Bc1 {[%clk 0:02:26.4]} 16... Nb4 {[%clk
0:02:16.1]} 17. Qb1 {[%clk 0:02:21.4]} 17... Qf5 {[%clk 0:01:48]} 18. Nxd6
{[%clk 0:02:17.1]} 18... Qxb1 {[%clk 0:01:47.3]} 19. Nxe8 {[%clk 0:02:05.2]}
19... Rxe8 {[%clk 0:01:45.9]} 0-1

[Event "Late-Titled-Tuesday-Blitz-February-06-2024"]
[Site "Chess.com"]
[Date "2024.02.06"]
[Round "4"]
[White "pr1105"]
[Black "jsdbv18"]
[Result "0-1"]
[WhiteElo "2411"]
[BlackElo "2614"]
[TimeControl "180+1"]
[EndTime "14:35:11 PST"]
[Termination "jsdbv18 won by resignation"]

1. e4 {[%clk 0:02:59]} 1... e5 {[%clk 0:02:56.4]} 2. Nf3 {[%clk 0:02:56]} 2...
d6 {[%clk 0:02:57.1]} 3. d4 {[%clk 0:02:55.7]} 3... exd4 {[%clk 0:02:58]} 4.
Nxd4 {[%clk 0:02:56.5]} 4... Nf6 {[%clk 0:02:58.1]} 5. Nc3 {[%clk 0:02:57.2]}
5... Be7 {[%clk 0:02:58.7]} 6. Bf4 {[%clk 0:02:57.8]} 6... O-O {[%clk
0:02:58.9]} 7. Qd2 {[%clk 0:02:58.4]} 7... Nbd7 {[%clk 0:02:55.4]} 8. O-O-O
{[%clk 0:02:55.7]} 8... c6 {[%clk 0:02:55.5]} 9. Be2 {[%clk 0:02:45.4]} 9... Nc5
{[%clk 0:02:44.8]} 10. f3 {[%clk 0:02:41.9]} 10... a5 {[%clk 0:02:43.4]} 11. g4
{[%clk 0:02:40.7]} 11... a4 {[%clk 0:02:42.2]} 12. Nf5 {[%clk 0:02:27.3]} 12...
Bxf5 {[%clk 0:02:35.2]} 13. gxf5 {[%clk 0:02:28.2]} 13... Kh8 {[%clk 0:02:25.2]}
14. Bxd6 {[%clk 0:02:19.3]} 14... a3 {[%clk 0:02:19.6]} 15. b3 {[%clk
0:02:16.5]} 15... Bxd6 {[%clk 0:02:19.5]} 16. Qxd6 {[%clk 0:02:17.4]} 16... Qa5
{[%clk 0:02:19.7]} 17. Nb1 {[%clk 0:01:51.2]} 17... Rad8 {[%clk 0:02:10.4]} 18.
Qe7 {[%clk 0:01:39.2]} 18... Rde8 {[%clk 0:02:06.6]} 19. Qd6 {[%clk 0:01:35.5]}
19... Rd8 {[%clk 0:02:01.5]} 20. Qe5 {[%clk 0:01:28.8]} 20... Nxb3+ {[%clk
0:02:01.3]} 0-1